Cogmind - Beta 13 X1 @@@ ROGUE MODE // 2023.07.28 @ 17:53:58 Player: LU-1G1 Result: Destroyed by IO-SAU(R) with Subdweller Shrapnel Launcher Performance ------------- Evolutions (0) 0 Regions Visited (2) 400 Robots Destroyed (28) 140 Value Destroyed (608) 608 Prototype IDs (2) 40 Alien Tech Used (0) 0 Bonus (0) 0 TOTAL SCORE: 1188 Bonus ------- None Cogmind --------- Core Integrity 0/250 Matter 9/300 Energy 100/100 System Corruption 5% Temperature Cool (0) Movement Core (50) Location -10/Subcaves Parts ------- > --- POWER (1) -------- (None) > --- PROPULSION (2) --- (None) > --- UTILITY (2) ------ (None) > --- WEAPON (2) ------- (None) > --- INVENTORY (5) ---- Scrap Shield Particle Gun Mini Grenade Launcher Subdweller Shrapnel Launcher Peak State ------------ > --- POWER ------------ Improved Ion Engine > --- PROPULSION ------- Light Treads Light Treads > --- UTILITY ---------- High-capacity Storage Unit Structural Scanner > --- WEAPON ----------- Particle Gun Particle Gun > --- INVENTORY -------- Improved Ion Engine Light Treads Light Treads Light Treads Light Armor Plating Light Armor Plating Light Armor Plating Light Armor Plating Light Armor Plating Particle Gun Particle Gun Mini Grenade Launcher Mini Grenade Launcher Mini Grenade Launcher [Rating: 12] Favorites ----------- Power Improved Ion Engine Engine Improved Ion Engine Propulsion Light Treads Treads Light Treads Utility High-capacity Storage Unit Device Structural Scanner Storage High-capacity Storage Unit Protection Light Armor Plating Weapon Particle Gun Energy Gun Particle Gun Launcher Mini Grenade Launcher Build | -11 -10 -10 ------- Run | Jun Mat Sub Slots Evolved . | . . . Power . | . . . Propulsion . | . . . Utility . | . . . Weapon . | . . . Parts Attached 30 | 7 9 14 Power 3 | 1 1 1 Engine 3 | 1 1 1 Core . | . . . Reactor . | . . . Propulsion 5 | 2 1 2 Treads 5 | 2 1 2 Leg . | . . . Wheel . | . . . Hover . | . . . Flight . | . . . Utility 10 | 2 3 5 Device 3 | 1 1 1 Storage 3 | 1 2 . Processor . | . . . Hackware . | . . . Protection 4 | . . 4 Artifact . | . . . Weapon 12 | 2 4 6 Energy Gun 7 | 2 3 2 Energy Cannon . | . . . Ballistic Gun . | . . . Ballistic Cannon . | . . . Launcher 5 | . 1 4 Special Weapon . | . . . Impact Weapon . | . . . Slashing Weapon . | . . . Piercing Weapon . | . . . Special Melee Weapon . | . . . Unidentified Prototypes . | . . . Corrupted Parts 1 | 1 . . System Corruption 1 | 1 . . Parts Lost 7 | . . 7 Power 1 | . . 1 Propulsion 2 | . . 2 Utility 2 | . . 2 Weapon 2 | . . 2 Highest Loss Streak 4 | . . 4 To Critical Strikes . | . . . Average Slot Usage (%) 92 | . 100 85 Engine 13 | . 14 13 Treads 27 | . 28 27 Device 6 | . 14 . Storage 13 | . 14 13 Protection 7 | . . 13 Energy Gun 13 | . 27 1 Launcher 7 | . . 13 Naked Turns 6 | . . 6 Heaviest Build 58 | 13 54 58 Greatest Support 40 | 40 40 40 Greatest Overweight (x) 1 | 1 1 1 Average Overweight (x) . | . . . Largest Inventory Capacity 20 | 8 20 20 Average Capacity 16 | 7 14 19 Most Carried 20 | 6 16 20 Average Carried 14 | 4 11 17 Final Capacity 20 | 8 20 5 Final Carried 16 | 6 16 5 Class Distribution -------------------- 100% | Mutant Dominant Class ---------------- Mutant | -10/Materials Mutant | -10/Subcaves Resources | -11 -10 -10 ----------- Run | Jun Mat Sub Matter Collected 837 | 217 218 402 Remotely . | . . . Salvage Created 727 | 90 524 113 Parts 49 | 5 33 11 Haulers Intercepted 2 | . 2 . Recyclers Shooed 1 | . 1 . Parts Field Recycled . | . . . Retrieved Matter . | . . . Parts Self-Destructed 5 | . . 5 Prevented . | . . . Kills | -11 -10 -10 ------- Run | Jun Mat Sub Combat Hostiles Destroyed 20 | . 10 10 Guns 6 | . 6 . AOE 13 | . 3 10 Classes Destroyed 8 | 2 4 2 Tunneler 2 | 1 1 . Hauler 2 | . 2 . Recycler 2 | 1 1 . Watcher 2 | . 2 . Swarmer 8 | . 3 5 Grunt 7 | . 7 . Sentry 1 | . . 1 Subdweller 4 | . . 4 Best Kill Streak 4 | 2 4 4 Combat Bots Only 4 | . 3 4 Max Kills in Single Turn 3 | 1 3 2 Gunslinging . | . . . Exploded 2 | . 2 2 Melee . | . . . Uniques/NPCs Destroyed . | . . . Combat | -11 -10 -10 -------- Run | Jun Mat Sub Damage Taken 1343 | 24 367 952 Core 257 | 12 52 193 Absorbed by Shields . | . . . Core Remaining (%) 95 | 95 . . Volleys Fired 79 | 6 33 40 Largest 2 | 2 2 2 Hottest 130 | 90 130 95 Shots Fired 115 | 12 62 41 Gun 72 | 12 58 2 Cannon . | . . . Launcher 43 | . 4 39 Special . | . . . Kinetic 11 | . . 11 Thermal 66 | 6 58 2 Explosive 32 | . 4 28 Electromagnetic 6 | 6 . . Robot Hit Streak 8 | 3 7 8 Robot Miss Streak 4 | 2 4 2 Penetration Max . | . . . Secondary Targets . | . . . Shots Hit Robots 48 | 6 30 12 Core Hits 36 | 3 19 14 Critical Kills . | . . . Critical Parts Destroyed . | . . . Critical Strikes 3 | . 3 . Burn 3 | . 3 . Melee Attacks . | . . . Impact . | . . . Slashing . | . . . Piercing . | . . . Sneak Attacks . | . . . Combat Hostiles . | . . . Follow-up Attacks . | . . . Damage Inflicted 2427 | 121 719 1587 Guns 582 | 88 494 . Cannons . | . . . Explosions 1827 | 33 207 1587 Melee . | . . . Ramming 18 | . 18 . Kinetic 446 | . . 446 Thermal 576 | 82 494 . Explosive 1348 | . 207 1141 Electromagnetic 39 | 39 . . Impact . | . . . Slashing . | . . . Piercing . | . . . Highest Corruption 5 | 1 5 5 Average Corruption 3 | 1 2 5 Corruption Purged . | . . . Corruption Blocked . | . . . Effects 67 | . 26 41 Message Errors 20 | . 8 12 Matter Fused 16 | . 5 11 Heat Flow Errors 5 | . 2 3 Energy Discharges 9 | . 7 2 Parts Rejected 1 | . . 1 Data Loss (minor) 12 | . 4 8 Data Loss (major) 1 | . . 1 Misfires 1 | . . 1 Alerts 2 | . . 2 Overload Shots . | . . . Overflow Damage 46 | 3 . 43 Projectiles . | . . . Explosions 46 | 3 . 43 Melee . | . . . Knockbacks . | . . . Impact . | . . . Kinetic . | . . . Secondary . | . . . Self-Inflicted Damage 252 | 24 10 218 Shots 13 | 1 1 11 Rammed 4 | . 4 . Targets Rammed 4 | . 4 . Kicked . | . . . Crushed . | . . . Highest Temperature 402 | 102 402 258 Average Temperature 122 | 50 132 110 Received Heat Transfer 279 | . 180 99 Effects 2 | . 2 . Shutdowns 1 | . 1 . Energy Bleed 1 | . 1 . Siege Activations . | . . . Robots Corrupted . | . . . Combat Hostiles . | . . . Parts Fried . | . . . Impact Corruptions . | . . . Robots Melted 1 | . 1 . Combat Hostiles 1 | . 1 . Parts Melted 3 | 1 2 . Heat Transferred 1567 | 198 1369 . Parts Sabotaged . | . . . Parts Stolen . | . . . Parts Stripped . | . . . Power Chain Reactions 1 | 1 . . Missiles Intercepted . | . . . Alert | -11 -10 -10 ------- Run | Jun Mat Sub Peak Influence 121 | 10 121 . Initial 6 | . 6 . Average 50 | 3 53 . Maximum Alert Level . | . . . Low Security (%) 100 | 100 100 . Level 1 . | . . . Level 2 . | . . . Level 3 . | . . . Level 4 . | . . . Level 5 . | . . . High Security . | . . . Max Security . | . . . Squads Dispatched 1 | . 1 . Investigation 1 | . 1 . Extermination . | . . . Reinforcement . | . . . Assault . | . . . Garrison . | . . . Intercept . | . . . Searches Triggered . | . . . Construction Impeded . | . . . Haulers Reinforced . | . . . Active Scanning Responses . | . . . Cargo Convoy Interrupts . | . . . Stealth | -11 -10 -10 --------- Run | Jun Mat Sub Distress Signals . | . . . Communications Jammed . | . . . Distress Signals . | . . . Times Spotted 34 | . 17 17 Peak Tracking Total 4 | . 3 4 Tactical Retreats 2 | . . 2 Traps | -11 -10 -10 ------- Run | Jun Mat Sub Traps Triggered 4 | . 3 1 Indirectly . | . . . Trap Hack Attempts . | . . . Triggered . | . . . Disarmed . | . . . Reprogrammed . | . . . Reused . | . . . Traps Extracted . | . . . Installed . | . . . Triggered . | . . . Machines | -11 -10 -10 ---------- Run | Jun Mat Sub Machines Disabled 1 | . 1 . Max in Single Turn 1 | . 1 . Machines Repaired . | . . . Machines Sabotaged . | . . . Overloaded Fab Kills . | . . . Hacking | -11 -10 -10 --------- Run | Jun Mat Sub Machines Accessed 6 | . 6 . Terminals 6 | . 6 . Fabricators . | . . . Repair Stations . | . . . Recycling Units . | . . . Scanalyzers . | . . . Garrison Access . | . . . Total Hacks 19 | . 19 . Successful 5 | . 5 . Failed 13 | . 13 . Catastrophic 3 | . 3 . Database Lockouts 1 | . 1 . Manual 9 | . 9 . Terminals 19 | . 19 . Fabricators . | . . . Repair Stations . | . . . Recycling Units . | . . . Scanalyzers . | . . . Garrison Access . | . . . Terminal Hacks 5 | . 5 . Robot Analysis 2 | . 2 . Prototype ID Bank 1 | . 1 . Zone Layout 2 | . 2 . Fabricator Hacks . | . . . Repair Station Hacks . | . . . Recycling Unit Hacks . | . . . Scanalyzer . | . . . Garrison Access Hacks . | . . . Unauthorized Hacks . | . . . Terminals . | . . . Fabricators . | . . . Repair Stations . | . . . Recycling Units . | . . . Scanalyzers . | . . . Garrison Access . | . . . Data Cores Recovered . | . . . Used . | . . . Hacking Detections 6 | . 6 . Full Trace Events 1 | . 1 . Feedback Events . | . . . Feedback Blocked . | . . . Robot Schematics Acquired . | . . . Robots Built . | . . . Authchips . | . . . Time . | . . . Total Robot Build Rating . | . . . Part Schematics Acquired . | . . . Parts Built . | . . . Authchips . | . . . Time . | . . . Total Part Build Rating . | . . . Parts Repaired . | . . . Time . | . . . Parts Recycled . | . . . Recycled Matter . | . . . Retrieved Matter . | . . . Retrieved Components . | . . . Parts Scanalyzed . | . . . Part Schematics Acquired . | . . . Parts Damaged . | . . . Bothacking | -11 -10 -10 ------------ Run | Jun Mat Sub Used RIF Installer . | . . . Robots Hacked . | . . . Non-combat . | . . . Combat . | . . . Robot Hacks Applied . | . . . Relay Couplers Released . | . . . Fabnet Peak Effective % . | . . . Robots Rewired . | . . . Allies Hacked . | . . . Hacks Repelled . | . . . Allies | -11 -10 -10 -------- Run | Jun Mat Sub Total Allies . | . . . Largest Group . | . . . Highest-Rated Group . | . . . Highest-Rated Ally . | . . . Total Orders . | . . . Ally Attacks . | . . . Total Damage . | . . . Kills . | . . . Allies Corrupted . | . . . Allies Melted . | . . . Intel | -11 -10 -10 ------- Run | Jun Mat Sub Robot Analysis Total 2 | . 2 . Derelict Logs Recovered 2 | . . 2 Drone Launches . | . . . Drone Recoveries . | . . . Exploration | -11 -10 -10 ------------- Run | Jun Mat Sub Turns Passed 3859 | 93 1746 2020 Spaces Moved 1656 | 42 816 798 Core 19 | 7 . 12 Treads 1637 | 35 816 786 Legs . | . . . Wheels . | . . . Hover . | . . . Flight . | . . . Fastest Speed 50 | 50 160 50 Average Speed 211 | 142 190 237 Slowest Speed 240 | 160 240 240 Overloaded Moves . | . . . Propulsion Burnouts . | . . . Robots Hopped . | . . . Cave-ins Triggered . | . . . Exploration Rate (%) 54 | 6 99 57 Regions Visited 2 Branch Regions 1 Pre-discovered Areas . | . . . Known Exits Taken . | . . . Unknown Exits Taken 2 | 1 1 . Scrap Searched 11 | . . 11 Spaces Dug 5 | . 5 . Terrain Destroyed 239 | 2 24 213 Melee . | . . . Projectile . | . . . AOE 239 | 2 24 213 Terrain Rammed . | . . . Walls Destroyed . | . . . Machines Disabled . | . . . Actions | -11 -10 -10 --------- Run | Jun Mat Sub Total 1895 | 60 953 882 Wait 76 | . 57 19 Move 1654 | 41 815 798 Hop . | . . . Pick Up 30 | 6 19 5 Fast Attach 12 | 7 2 3 Attach 8 | . . 8 Detach 4 | . . 4 Swap 10 | . 7 3 Drop 18 | . 16 2 Fire 79 | 6 33 40 Melee . | . . . Ram . | . . . Kick . | . . . Crush 4 | . 4 . Escape Stasis . | . . . Rewire . | . . . Trap . | . . . Miscellaneous . | . . . Route ------- -11/Junkyard -10/Materials (discovered 5 exits: [*Mat x3] / [*Min] / [*Sub]) -10/Subcaves (discovered 1 exit: [*Mat]) History --------- Turn | Location | Event 12 | -11/Junkyard | Discovered new exit (range 15) 94 | -11/Junkyard | Entered Materials 172 | -10/Materials | Central database locked down 300 | -10/Materials | Build established: Mutant 300 | -10/Materials | Discovered new exit (range 8) 746 | -10/Materials | Discovered new exit (range 15) 946 | -10/Materials | Discovered new exit (range 10) 1400 | -10/Materials | Discovered new exit (range 12) 1676 | -10/Materials | Discovered new exit (range 8) 1840 | -10/Materials | Entered Subcaves 1843 | -10/Subcaves | Learned Materials trap positions 1876 | -10/Subcaves | Learned Materials stockpile data 2644 | -10/Subcaves | Shifting Twisted Machinery released Sub. Optics 2693 | -10/Subcaves | Shifting Twisted Machinery released Sub. Power Source 2898 | -10/Subcaves | Disturbed a concealed Subdweller 3402 | -10/Subcaves | Discovered new exit (range 12) 3523 | -10/Subcaves | Core integrity fell below 50% 3558 | -10/Subcaves | Lost 4 parts (1p2n1u) 3854 | -10/Subcaves | Released all parts (6) 3858 | -10/Subcaves | Core integrity fell below 20% 3860 | -10/Subcaves | Destroyed by IO-SAU(R) with Subdweller Shrapnel Launcher Last Messages --------------- 03560_ System corrupted: Matter fused (-8). 03627_ Acquired 27 matter. 03633_ System corrupted: IFF burst signal emitted. 03636_ Destroyed Flight Unit. 03636_ S-10 Pest destroyed. 03649_ JPMR%V=M LFYP6CU 03715_ System corrupted: Energy discharge (-92). 03725_ The unstable cave ceiling collapses. 03737_ D=XNILY AGBDQ QN8=AU6MANS%TY 03811_ System corrupted: Component data lost. 03841_ 5FKLPS<3RGW7ISL&TPJXTIQ GJ> 9O-5HM(R) emerges from concealment. 03854_ Released Mni. Grenade Launcher. 03854_ Released Lgt. Treads. 03854_ Released Imp. Ion Engine. 03854_ Released Hcp. Storage Unit. 03854_ Released Lgt. Armor Plating. Map ----- +----------------------------------------------------+ | ?????????????????????????????????????????????????? | | ?????????????????????????????????????????????????? | | ?????????????????????????????????????????????????? | | ????????????????????????????????????? ??????????? | | ????????????????????????????????????# ?????????? | | ????????????????????????????????#### ?????????? | | ???????????????????????????????## # #?????????? | | ??????????????????????????????## ##??###???? | | ??????????????????????????????# ### #???? | | ??????????????????????????????# ###?? | | ?????????????????????????###??? ##? | | ????????????????????????## ####? #? | | ????????????????????????# ##?# #? | | ?????????????????#####??## ### ## | | ????????????????## ####;# ;; ## | | ?#####??????????# ##; ??# | | ?# ####???????# # #?????# | | ?# #####???# ; & #?????# | | ?## ##??#### ## ##?????# | | ??### #?###?# # ######## | | ????# ##?# ### ## * ## ## | | ??### ###### ## # ;; ##= | | ?## ##?# " ### | | ?# ##?# R #### # | | ?# ### ##?# # | | ?# ## @ ##??## | | ?# !! ;;; ####????###### # ### | | ?# R=[!#;;; ##????????????### | | ?### [=]!!#;; ;##???????????????# | | ???## ## ]=*&]#; ;;##????????????????# | | ????# ## ! ;;##????????????????## | | ????# ##### ;##?????????????????# | | ????# ???# ###??????????????????# | | ???? ???## ## ##????????????????????# ## | | ???# ????#######?????????????????????# ?### | | ???## ????????????????????????????????# ???# | | ???? ???????????????????????????????## ???? | | ????# ????????????????????????????????## ???? | | ???? ##?????????????????????????????????## ???? | | ???? ????????????????????????????????????# ???? | | ????# ???????????????????????????????????? #???? | | ????# ???????????????????????????????????? #????? | | ???? ????????????????????????????????????#?????? | | ????? ??????????????????????????????????????????? | | ????? ??????????????????????????????????????????? | | ?????????????????????????????????????????????????? | | ?????????????????????????????????????????????????? | | ?????????????????????????????????????????????????? | | ?????????????????????????????????????????????????? | | ?????????????????????????????????????????????????? | +----------------------------------------------------+ Best States ------------- Heat Dissipation 25 Energy Generation 12 Energy Capacity 265 Matter Stores 300 Matter Capacity 300 Sight Range 16 Terrain Scan Density 10 Armor Coverage 150 Evasion (%) 50 Recoil Reduction 2 Item Schematics ----------------- None Robot Schematics ------------------ None Fabricated ------------ Nothing Alien Tech Used ----------------- None Achievements -------------- None Challenges ------------ None Game ------ Seed PhasingEnergyCharge Manual? 0 Play Time 00:20:12 Cumulative 640.6 hours Start 2023.07.28 @ 17:31:29 End 2023.07.28 @ 17:53:58 Sessions 1 Manual Loads 0 Difficulty Rogue Special Mode None Game No. 561 Rogue 346 Adventurer 112 Explorer 103 Win Type - Total 42 Types 26/0/8/3/0/0/4/1/0 Lore% 85 Gallery% 91 Achievement% 82 Wizard Run 0 Options --------- ASCII 0 Keyboard 1 Movement Vi Keybinds 1 Fullscreen 2 Font 36/Smallcaps Map View 66x50 Tactical HUD 1 Map Filters NONE Filters NONE Steam 1 RUN: 1a7fad6d-9d11-4690-a320-f8cf1b918c61